[Event "Late-Titled-Tuesday-Blitz-June-18-2024"]
[Site "Chess.com"]
[Date "2024.06.18"]
[Round "2"]
[White "th3d4rkness"]
[Black "secretworker2027"]
[Result "0-1"]
[WhiteElo "2206"]
[BlackElo "2663"]
[TimeControl "180+1"]
[EndTime "14:18:51 PDT"]
[Termination "secretworker2027 won on time"]

1. e4 {[%clk 0:03:00.9]} 1... c5 {[%clk 0:02:59.3]} 2. Nc3 {[%clk 0:03:00.7]}
2... Nc6 {[%clk 0:02:59.5]} 3. Bb5 {[%clk 0:02:59.6]} 3... Nd4 {[%clk
0:02:59.5]} 4. Bc4 {[%clk 0:02:59.7]} 4... g6 {[%clk 0:02:59.5]} 5. f4 {[%clk
0:02:59.8]} 5... Bg7 {[%clk 0:02:56.5]} 6. Nf3 {[%clk 0:02:59.6]} 6... a6 {[%clk
0:02:52.3]} 7. a4 {[%clk 0:02:57.7]} 7... Rb8 {[%clk 0:02:52.4]} 8. O-O {[%clk
0:02:52.2]} 8... b5 {[%clk 0:02:51.9]} 9. axb5 {[%clk 0:02:50.5]} 9... axb5
{[%clk 0:02:52.1]} 10. Be2 {[%clk 0:02:48.2]} 10... b4 {[%clk 0:02:50.5]} 11.
Nb1 {[%clk 0:02:41.4]} 11... Nf6 {[%clk 0:02:30.9]} 12. e5 {[%clk 0:02:39.3]}
12... Nd5 {[%clk 0:02:28.4]} 13. Nxd4 {[%clk 0:02:36]} 13... cxd4 {[%clk
0:02:28.4]} 14. Bc4 {[%clk 0:02:32.1]} 14... Bb7 {[%clk 0:02:28.5]} 15. d3
{[%clk 0:02:21.8]} 15... O-O {[%clk 0:02:26]} 16. Qe2 {[%clk 0:02:06.2]} 16...
e6 {[%clk 0:02:13.3]} 17. Bxd5 {[%clk 0:02:00.8]} 17... Bxd5 {[%clk 0:02:12.8]}
18. Nd2 {[%clk 0:02:01.2]} 18... d6 {[%clk 0:02:12.9]} 19. exd6 {[%clk
0:01:47.1]} 19... Qxd6 {[%clk 0:02:11.4]} 20. Ne4 {[%clk 0:01:47]} 20... Qc6
{[%clk 0:02:11.2]} 21. Bd2 {[%clk 0:01:25.6]} 21... Rfc8 {[%clk 0:01:53.7]} 22.
Rfc1 {[%clk 0:01:18.2]} 22... Ra8 {[%clk 0:01:50.9]} 23. Rxa8 {[%clk 0:01:13.2]}
23... Rxa8 {[%clk 0:01:50.2]} 24. Bxb4 {[%clk 0:01:12.9]} 24... Rb8 {[%clk
0:01:47.1]} 25. Ba3 {[%clk 0:01:11.3]} 25... Rc8 {[%clk 0:01:31.8]} 26. h3
{[%clk 0:01:06.1]} 26... Qa4 {[%clk 0:01:26.7]} 27. Kh1 {[%clk 0:00:53.3]} 27...
Qc6 {[%clk 0:01:25.1]} 28. Kh2 {[%clk 0:00:52.2]} 28... h6 {[%clk 0:01:18.8]}
29. b3 {[%clk 0:00:45.8]} 29... f5 {[%clk 0:01:16.2]} 30. Nd6 {[%clk 0:00:42.9]}
30... Rd8 {[%clk 0:01:15.1]} 31. Nc4 {[%clk 0:00:41.9]} 31... Qa8 {[%clk
0:01:07.2]} 32. Be7 {[%clk 0:00:38.2]} 32... Rd7 {[%clk 0:01:05]} 33. Bb4 {[%clk
0:00:37.5]} 33... Qb8 {[%clk 0:01:04.4]} 34. Bd2 {[%clk 0:00:36.2]} 34... g5
{[%clk 0:01:04.2]} 35. Rf1 {[%clk 0:00:16.7]} 35... Bxc4 {[%clk 0:00:56.7]} 36.
bxc4 {[%clk 0:00:15.1]} 36... e5 {[%clk 0:00:57.6]} 37. fxe5 {[%clk 0:00:12.9]}
37... Qxe5+ {[%clk 0:00:50.5]} 38. Qxe5 {[%clk 0:00:11.1]} 38... Bxe5+ {[%clk
0:00:51.4]} 39. Kg1 {[%clk 0:00:10.5]} 39... Rf7 {[%clk 0:00:51.4]} 40. Rb1
{[%clk 0:00:09.9]} 40... Bg3 {[%clk 0:00:50]} 41. Be1 {[%clk 0:00:09.4]} 41...
Bf4 {[%clk 0:00:49.6]} 42. Bf2 {[%clk 0:00:09.6]} 42... Rd7 {[%clk 0:00:48.8]}
43. Rb5 {[%clk 0:00:07.9]} 43... Kf7 {[%clk 0:00:42.6]} 44. Rxf5+ {[%clk
0:00:07]} 44... Kg6 {[%clk 0:00:43.5]} 45. Rd5 {[%clk 0:00:05.2]} 45... Ra7
{[%clk 0:00:43.8]} 46. Bxd4 {[%clk 0:00:02.3]} 46... Ra2 {[%clk 0:00:43.8]} 0-1

[Event "Late-Titled-Tuesday-Blitz-June-18-2024"]
[Site "Chess.com"]
[Date "2024.06.18"]
[Round "2"]
[White "KNVB"]
[Black "CheckBits"]
[Result "1-0"]
[WhiteElo "2794"]
[BlackElo "2402"]
[TimeControl "180+1"]
[EndTime "14:18:52 PDT"]
[Termination "KNVB won on time"]

1. b3 {[%clk 0:03:00.9]} 1... e5 {[%clk 0:02:54.6]} 2. Bb2 {[%clk 0:03:00.9]}
2... Nc6 {[%clk 0:02:53.4]} 3. e3 {[%clk 0:03:01.1]} 3... a6 {[%clk 0:02:53.6]}
4. Nf3 {[%clk 0:02:59.4]} 4... d6 {[%clk 0:02:53.1]} 5. d4 {[%clk 0:02:58.5]}
5... exd4 {[%clk 0:02:49.4]} 6. Nxd4 {[%clk 0:02:58.5]} 6... Nxd4 {[%clk
0:02:47.2]} 7. Qxd4 {[%clk 0:02:59.4]} 7... Nf6 {[%clk 0:02:44.9]} 8. Nc3 {[%clk
0:02:57.9]} 8... Be7 {[%clk 0:02:44.2]} 9. O-O-O {[%clk 0:02:56.1]} 9... Be6
{[%clk 0:02:41]} 10. Be2 {[%clk 0:02:45.1]} 10... d5 {[%clk 0:02:31.5]} 11. Bf3
{[%clk 0:02:02.2]} 11... c6 {[%clk 0:02:27.2]} 12. g4 {[%clk 0:01:01.3]} 12...
Rg8 {[%clk 0:01:08.4]} 13. g5 {[%clk 0:00:21.4]} 13... Nd7 {[%clk 0:01:06.6]}
14. h4 {[%clk 0:00:21.9]} 14... Qb6 {[%clk 0:00:53.1]} 15. Qxb6 {[%clk
0:00:16.5]} 15... Nxb6 {[%clk 0:00:53]} 16. e4 {[%clk 0:00:17.4]} 16... O-O-O
{[%clk 0:00:30.1]} 17. exd5 {[%clk 0:00:17.6]} 17... cxd5 {[%clk 0:00:30]} 18.
Ne2 {[%clk 0:00:18.1]} 18... h6 {[%clk 0:00:20.3]} 19. Rhg1 {[%clk 0:00:08.7]}
19... hxg5 {[%clk 0:00:19.2]} 20. hxg5 {[%clk 0:00:09.6]} 20... Nd7 {[%clk
0:00:16.3]} 21. Bxd5 {[%clk 0:00:08]} 21... Bxd5 {[%clk 0:00:13]} 22. Rxd5
{[%clk 0:00:08.9]} 22... Nc5 {[%clk 0:00:13]} 23. Rxd8+ {[%clk 0:00:02.7]} 23...
Bxd8 {[%clk 0:00:13.2]} 24. Bd4 {[%clk 0:00:02.6]} 24... Ne6 {[%clk 0:00:13.1]}
25. Be3 {[%clk 0:00:02.7]} 25... Rh8 {[%clk 0:00:12.6]} 26. g6 {[%clk
0:00:02.8]} 26... f5 {[%clk 0:00:11.2]} 27. Nd4 {[%clk 0:00:02.9]} 27... f4
{[%clk 0:00:06.8]} 28. Nxe6 {[%clk 0:00:03.1]} 28... fxe3 {[%clk 0:00:07.2]} 29.
fxe3 {[%clk 0:00:03.9]} 29... Bb6 {[%clk 0:00:06.6]} 30. Kd2 {[%clk 0:00:02.9]}
30... Re8 {[%clk 0:00:06.7]} 31. Nd4 {[%clk 0:00:02.6]} 1-0

[Event "Late-Titled-Tuesday-Blitz-June-18-2024"]
[Site "Chess.com"]
[Date "2024.06.18"]
[Round "2"]
[White "ArtemDyachuk"]
[Black "SpeedofLight0"]
[Result "1-0"]
[WhiteElo "2650"]
[BlackElo "3028"]
[TimeControl "180+1"]
[EndTime "14:18:53 PDT"]
[Termination "ArtemDyachuk won on time"]

1. e4 {[%clk 0:03:00.9]} 1... g6 {[%clk 0:02:59.8]} 2. d4 {[%clk 0:02:57.8]}
2... Bg7 {[%clk 0:03:00.3]} 3. c4 {[%clk 0:02:57.4]} 3... c6 {[%clk 0:03:00.1]}
4. Nc3 {[%clk 0:02:56]} 4... d5 {[%clk 0:02:58.9]} 5. cxd5 {[%clk 0:02:51.3]}
5... cxd5 {[%clk 0:02:58.8]} 6. exd5 {[%clk 0:02:45.4]} 6... Nf6 {[%clk
0:02:58.7]} 7. Bc4 {[%clk 0:02:45.2]} 7... O-O {[%clk 0:02:58.8]} 8. Nf3 {[%clk
0:02:44.6]} 8... Nbd7 {[%clk 0:02:59.2]} 9. O-O {[%clk 0:02:36.7]} 9... Nb6
{[%clk 0:02:59.6]} 10. Bb3 {[%clk 0:02:36.4]} 10... Nbxd5 {[%clk 0:02:59.2]} 11.
Nxd5 {[%clk 0:02:31.2]} 11... Nxd5 {[%clk 0:03:00.1]} 12. Ne5 {[%clk 0:02:31.6]}
12... Be6 {[%clk 0:02:59]} 13. Qf3 {[%clk 0:02:29.1]} 13... Rc8 {[%clk
0:02:58.3]} 14. Re1 {[%clk 0:02:01.6]} 14... Qd6 {[%clk 0:02:50]} 15. Bg5 {[%clk
0:01:46.9]} 15... Bf6 {[%clk 0:02:24.9]} 16. Bh6 {[%clk 0:01:34.2]} 16... Rfd8
{[%clk 0:02:21]} 17. Rad1 {[%clk 0:01:22.2]} 17... Qa6 {[%clk 0:02:04.9]} 18. g3
{[%clk 0:01:10.3]} 18... Bg7 {[%clk 0:01:35]} 19. Bg5 {[%clk 0:00:32.9]} 19...
h6 {[%clk 0:01:06.9]} 20. Bc1 {[%clk 0:00:30.2]} 20... h5 {[%clk 0:01:04.6]} 21.
Re4 {[%clk 0:00:07.4]} 21... Bf5 {[%clk 0:00:46.3]} 22. Rh4 {[%clk 0:00:05.3]}
22... e6 {[%clk 0:00:44.7]} 23. h3 {[%clk 0:00:04.2]} 23... Nf6 {[%clk
0:00:11.4]} 24. g4 {[%clk 0:00:04.3]} 24... Be4 {[%clk 0:00:10.9]} 25. Qf4
{[%clk 0:00:02.9]} 25... Bd5 {[%clk 0:00:02.2]} 26. g5 {[%clk 0:00:03.1]} 26...
Bxb3 {[%clk 0:00:02.8]} 27. axb3 {[%clk 0:00:02.4]} 27... Qe2 {[%clk 0:00:03.4]}
28. Rf1 {[%clk 0:00:02.2]} 28... Rf8 {[%clk 0:00:01.2]} 29. gxf6 {[%clk
0:00:02.6]} 29... Bh8 {[%clk 0:00:01.4]} 30. Kg2 {[%clk 0:00:02.9]} 1-0

[Event "Late-Titled-Tuesday-Blitz-June-18-2024"]
[Site "Chess.com"]
[Date "2024.06.18"]
[Round "2"]
[White "RichardShtivelband"]
[Black "Aram7Adam"]
[Result "1-0"]
[WhiteElo "2382"]
[BlackElo "2589"]
[TimeControl "180+1"]
[EndTime "14:18:54 PDT"]
[Termination "RichardShtivelband won by checkmate"]

1. Nf3 {[%clk 0:03:00.9]} 1... d5 {[%clk 0:02:59.5]} 2. e3 {[%clk 0:02:59.5]}
2... Bg4 {[%clk 0:02:59.4]} 3. c4 {[%clk 0:02:56.6]} 3... c6 {[%clk 0:02:49.4]}
4. Qb3 {[%clk 0:02:54.6]} 4... Qd7 {[%clk 0:02:40]} 5. Ne5 {[%clk 0:02:53.2]}
5... Qc7 {[%clk 0:02:07]} 6. Nxg4 {[%clk 0:02:45.8]} 6... b6 {[%clk 0:02:06.9]}
7. d4 {[%clk 0:02:40.7]} 7... dxc4 {[%clk 0:02:01.6]} 8. Bxc4 {[%clk 0:02:39.1]}
8... e6 {[%clk 0:02:01.9]} 9. Ne5 {[%clk 0:02:35.2]} 9... Bd6 {[%clk 0:01:58.9]}
10. f4 {[%clk 0:02:26.3]} 10... b5 {[%clk 0:01:33.8]} 11. Bd3 {[%clk 0:02:22.1]}
11... a5 {[%clk 0:01:33.3]} 12. Nd2 {[%clk 0:02:20.2]} 12... a4 {[%clk 0:01:33]}
13. Qc2 {[%clk 0:02:19.9]} 13... f6 {[%clk 0:01:30.6]} 14. Nef3 {[%clk
0:02:19.3]} 14... Ne7 {[%clk 0:01:28]} 15. Ne4 {[%clk 0:02:18.1]} 15... Nd5
{[%clk 0:01:20.3]} 16. a3 {[%clk 0:02:15.5]} 16... Be7 {[%clk 0:01:15.9]} 17.
Bd2 {[%clk 0:02:13]} 17... Na6 {[%clk 0:01:10.6]} 18. Rc1 {[%clk 0:02:08.6]}
18... Rc8 {[%clk 0:01:09]} 19. O-O {[%clk 0:02:06.4]} 19... Qb6 {[%clk
0:01:04.5]} 20. Nc5 {[%clk 0:02:04.9]} 20... Nxc5 {[%clk 0:01:02]} 21. dxc5
{[%clk 0:02:04.6]} 21... Qc7 {[%clk 0:01:00.3]} 22. g3 {[%clk 0:01:56.8]} 22...
Qa7 {[%clk 0:00:54.8]} 23. e4 {[%clk 0:01:50.7]} 23... Nc7 {[%clk 0:00:54.5]}
24. Be3 {[%clk 0:01:49.4]} 24... Kf7 {[%clk 0:00:53.5]} 25. Rfd1 {[%clk
0:01:45.3]} 25... Rcd8 {[%clk 0:00:52.7]} 26. Be2 {[%clk 0:01:44.9]} 26... Na6
{[%clk 0:00:48.6]} 27. e5 {[%clk 0:01:34.9]} 27... f5 {[%clk 0:00:45.7]} 28.
Ng5+ {[%clk 0:01:33.6]} 28... Bxg5 {[%clk 0:00:45.4]} 29. fxg5 {[%clk
0:01:34.5]} 29... g6 {[%clk 0:00:43.2]} 30. Rd6 {[%clk 0:01:33]} 30... Rxd6
{[%clk 0:00:30.7]} 31. exd6 {[%clk 0:01:32.2]} 31... e5 {[%clk 0:00:30.6]} 32.
Kg2 {[%clk 0:01:18.2]} 32... Qd7 {[%clk 0:00:30]} 33. Qc3 {[%clk 0:01:10.1]}
33... Re8 {[%clk 0:00:29.7]} 34. Re1 {[%clk 0:01:07.8]} 34... Nb8 {[%clk
0:00:23.1]} 35. Bd3 {[%clk 0:01:01.9]} 35... Qe6 {[%clk 0:00:22]} 36. Kg1 {[%clk
0:00:52.5]} 36... Nd7 {[%clk 0:00:21.8]} 37. Bf2 {[%clk 0:00:50.9]} 37... Kg8
{[%clk 0:00:20.5]} 38. Bc2 {[%clk 0:00:49.8]} 38... f4 {[%clk 0:00:13.4]} 39. b3
{[%clk 0:00:46]} 39... Qg4 {[%clk 0:00:11.7]} 40. bxa4 {[%clk 0:00:41.9]} 40...
bxa4 {[%clk 0:00:11.3]} 41. Bxa4 {[%clk 0:00:41.6]} 41... e4 {[%clk 0:00:10.1]}
42. Bb3+ {[%clk 0:00:41.4]} 42... Kf8 {[%clk 0:00:07.1]} 43. Bd4 {[%clk
0:00:39.5]} 43... Ne5 {[%clk 0:00:02.8]} 44. Bxe5 {[%clk 0:00:37]} 44... fxg3
{[%clk 0:00:03.1]} 45. Bg7# {[%clk 0:00:33.4]} 1-0

[Event "Late-Titled-Tuesday-Blitz-June-18-2024"]
[Site "Chess.com"]
[Date "2024.06.18"]
[Round "2"]
[White "ClauAmura"]
[Black "aot317"]
[Result "0-1"]
[WhiteElo "2348"]
[BlackElo "2544"]
[TimeControl "180+1"]
[EndTime "14:18:55 PDT"]
[Termination "aot317 won on time"]

1. d4 {[%clk 0:02:59.3]} 1... Nf6 {[%clk 0:02:58.8]} 2. c4 {[%clk 0:02:59.1]}
2... c5 {[%clk 0:02:59.2]} 3. e3 {[%clk 0:02:55.6]} 3... cxd4 {[%clk 0:02:57.9]}
4. exd4 {[%clk 0:02:55]} 4... g6 {[%clk 0:02:58.2]} 5. Nc3 {[%clk 0:02:54.3]}
5... Bg7 {[%clk 0:02:58.8]} 6. Nf3 {[%clk 0:02:53.7]} 6... O-O {[%clk
0:02:59.4]} 7. h3 {[%clk 0:02:50.3]} 7... d6 {[%clk 0:02:57]} 8. Be3 {[%clk
0:02:50]} 8... Nbd7 {[%clk 0:02:51.3]} 9. Bd3 {[%clk 0:02:49.7]} 9... a6 {[%clk
0:02:50.1]} 10. O-O {[%clk 0:02:49.2]} 10... Re8 {[%clk 0:02:50]} 11. Re1 {[%clk
0:02:48.7]} 11... Rb8 {[%clk 0:02:48.5]} 12. Qd2 {[%clk 0:02:48.7]} 12... e5
{[%clk 0:02:44.5]} 13. d5 {[%clk 0:02:47.6]} 13... e4 {[%clk 0:02:43.1]} 14. Ba7
{[%clk 0:02:32]} 14... Ra8 {[%clk 0:02:25.6]} 15. Bxe4 {[%clk 0:02:31]} 15...
Rxa7 {[%clk 0:02:22.1]} 16. Bc2 {[%clk 0:02:27.5]} 16... Ra8 {[%clk 0:02:20.1]}
17. Ne2 {[%clk 0:02:27.5]} 17... Ne4 {[%clk 0:02:12.2]} 18. Qb4 {[%clk
0:02:22.7]} 18... Ndc5 {[%clk 0:02:09]} 19. Ned4 {[%clk 0:02:17]} 19... Bd7
{[%clk 0:01:56.6]} 20. Re2 {[%clk 0:02:11.7]} 20... a5 {[%clk 0:01:53.2]} 21.
Qe1 {[%clk 0:02:08.9]} 21... Nf6 {[%clk 0:01:52.8]} 22. a3 {[%clk 0:01:35.1]}
22... Rxe2 {[%clk 0:01:49.5]} 23. Qxe2 {[%clk 0:01:36]} 23... Qc7 {[%clk
0:01:50]} 24. Qd2 {[%clk 0:01:34.1]} 24... Re8 {[%clk 0:01:46]} 25. b4 {[%clk
0:01:32.8]} 25... Nce4 {[%clk 0:01:44.7]} 26. Qd3 {[%clk 0:01:26]} 26... axb4
{[%clk 0:01:43]} 27. axb4 {[%clk 0:01:25.7]} 27... Qb6 {[%clk 0:01:43.5]} 28.
Rb1 {[%clk 0:01:20.3]} 28... Nh5 {[%clk 0:01:40.2]} 29. c5 {[%clk 0:01:03.1]}
29... dxc5 {[%clk 0:01:21.3]} 30. bxc5 {[%clk 0:01:04]} 30... Qxc5 {[%clk
0:01:20.6]} 31. Rxb7 {[%clk 0:01:04.5]} 31... Qc8 {[%clk 0:01:14.2]} 32. Ra7
{[%clk 0:00:57.5]} 32... Nf4 {[%clk 0:01:12.8]} 33. Qe3 {[%clk 0:00:40.9]} 33...
Nxd5 {[%clk 0:01:12.4]} 34. Qb3 {[%clk 0:00:28.9]} 34... Nec3 {[%clk 0:00:55.5]}
35. Bd3 {[%clk 0:00:14.9]} 35... Rd8 {[%clk 0:00:27.5]} 36. Ba6 {[%clk
0:00:13.9]} 36... Qc5 {[%clk 0:00:25.3]} 0-1

[Event "Late-Titled-Tuesday-Blitz-June-18-2024"]
[Site "Chess.com"]
[Date "2024.06.18"]
[Round "2"]
[White "marvinguevara"]
[Black "patzer-reloaded"]
[Result "0-1"]
[WhiteElo "2147"]
[BlackElo "2463"]
[TimeControl "180+1"]
[EndTime "14:18:56 PDT"]
[Termination "patzer-reloaded won by resignation"]

1. e4 {[%clk 0:02:47.8]} 1... d6 {[%clk 0:03:00.9]} 2. d4 {[%clk 0:02:47.7]}
2... Nf6 {[%clk 0:03:00.1]} 3. Nc3 {[%clk 0:02:48]} 3... g6 {[%clk 0:03:00.7]}
4. f4 {[%clk 0:02:47]} 4... Bg7 {[%clk 0:03:01.1]} 5. Nf3 {[%clk 0:02:46.9]}
5... O-O {[%clk 0:03:01.2]} 6. e5 {[%clk 0:02:47.5]} 6... dxe5 {[%clk
0:03:00.8]} 7. fxe5 {[%clk 0:02:48.4]} 7... Nd5 {[%clk 0:03:00.1]} 8. Bc4 {[%clk
0:02:37.2]} 8... Nxc3 {[%clk 0:02:59.3]} 9. bxc3 {[%clk 0:02:38.1]} 9... c5
{[%clk 0:02:59.6]} 10. O-O {[%clk 0:02:32.7]} 10... Bg4 {[%clk 0:02:59.3]} 11.
h3 {[%clk 0:02:29.1]} 11... Bxf3 {[%clk 0:02:58.5]} 12. Rxf3 {[%clk 0:02:29]}
12... Nc6 {[%clk 0:02:55.2]} 13. Be3 {[%clk 0:02:25.5]} 13... Rc8 {[%clk
0:02:46.5]} 14. Qf1 {[%clk 0:01:44]} 14... e6 {[%clk 0:02:44.7]} 15. Rb1 {[%clk
0:01:40.2]} 15... cxd4 {[%clk 0:02:36.8]} 16. cxd4 {[%clk 0:01:39.1]} 16... Na5
{[%clk 0:02:35.9]} 17. Bd3 {[%clk 0:01:31.5]} 17... Qd5 {[%clk 0:02:15.5]} 18.
Rb5 {[%clk 0:01:26.5]} 18... Qxa2 {[%clk 0:02:13.7]} 19. Bd2 {[%clk 0:01:01.2]}
19... Nc4 {[%clk 0:02:02.5]} 20. Bxc4 {[%clk 0:00:57.8]} 20... Qxc4 {[%clk
0:02:01.9]} 21. Qxc4 {[%clk 0:00:50.1]} 21... Rxc4 {[%clk 0:02:00.5]} 22. Rxb7
{[%clk 0:00:50.7]} 22... Rxd4 {[%clk 0:01:51.1]} 23. Bb4 {[%clk 0:00:51]} 23...
Rxb4 {[%clk 0:01:30.7]} 24. Rxb4 {[%clk 0:00:48.6]} 24... Bxe5 {[%clk
0:01:31.2]} 25. Ra4 {[%clk 0:00:47.4]} 25... Rc8 {[%clk 0:01:27]} 26. c4 {[%clk
0:00:45]} 26... f5 {[%clk 0:01:21.5]} 27. Kf1 {[%clk 0:00:44.8]} 27... Bd4
{[%clk 0:01:15.6]} 28. Rd3 {[%clk 0:00:43.9]} 28... e5 {[%clk 0:01:15]} 29. Rb3
{[%clk 0:00:40.3]} 29... Rc7 {[%clk 0:01:13]} 30. Ke2 {[%clk 0:00:37.1]} 30...
Kf7 {[%clk 0:01:11.5]} 31. Rab4 {[%clk 0:00:22.6]} 31... Bb6 {[%clk 0:01:08.5]}
32. Rd3 {[%clk 0:00:19]} 32... Ke6 {[%clk 0:01:06.4]} 33. Rd5 {[%clk 0:00:18.8]}
33... e4 {[%clk 0:01:03.4]} 34. Rdb5 {[%clk 0:00:16.2]} 34... f4 {[%clk
0:00:57.6]} 35. c5 {[%clk 0:00:15.6]} 35... Rxc5 {[%clk 0:00:52.5]} 36. Rxe4+
{[%clk 0:00:15.1]} 36... Kf5 {[%clk 0:00:51.8]} 37. Rxc5+ {[%clk 0:00:15.5]}
37... Bxc5 {[%clk 0:00:52.3]} 38. Rc4 {[%clk 0:00:15.8]} 38... Be3 {[%clk
0:00:50.7]} 39. Kf3 {[%clk 0:00:15.9]} 39... h5 {[%clk 0:00:46.8]} 40. Rc6
{[%clk 0:00:14.8]} 40... g5 {[%clk 0:00:45.9]} 41. Ra6 {[%clk 0:00:14.4]} 41...
g4+ {[%clk 0:00:45.4]} 42. Ke2 {[%clk 0:00:14.6]} 42... Bb6 {[%clk 0:00:42.8]}
43. Ra4 {[%clk 0:00:12.3]} 43... Kg5 {[%clk 0:00:38.7]} 44. Rb4 {[%clk
0:00:10.6]} 44... f3+ {[%clk 0:00:38.1]} 45. gxf3 {[%clk 0:00:10.1]} 45... gxh3
{[%clk 0:00:39]} 46. Rc4 {[%clk 0:00:06.8]} 46... h2 {[%clk 0:00:36.3]} 47. Rc1
{[%clk 0:00:06.2]} 47... Bg1 {[%clk 0:00:35.5]} 48. Rxg1+ {[%clk 0:00:03.2]} 0-1

[Event "Late-Titled-Tuesday-Blitz-June-18-2024"]
[Site "Chess.com"]
[Date "2024.06.18"]
[Round "2"]
[White "Matalon"]
[Black "Rashad_Zeynalli"]
[Result "0-1"]
[WhiteElo "2466"]
[BlackElo "2738"]
[TimeControl "180+1"]
[EndTime "14:18:57 PDT"]
[Termination "Rashad_Zeynalli won by resignation"]

1. e4 {[%clk 0:03:00.9]} 1... e5 {[%clk 0:02:59]} 2. Nf3 {[%clk 0:03:00.7]} 2...
Nc6 {[%clk 0:02:59.6]} 3. Bb5 {[%clk 0:03:00.3]} 3... a6 {[%clk 0:03:00.1]} 4.
Ba4 {[%clk 0:03:00.2]} 4... Nf6 {[%clk 0:03:00.5]} 5. d4 {[%clk 0:03:00.6]} 5...
exd4 {[%clk 0:02:58.4]} 6. O-O {[%clk 0:03:00.4]} 6... Be7 {[%clk 0:02:58.8]} 7.
e5 {[%clk 0:03:00]} 7... Ne4 {[%clk 0:02:48.5]} 8. Nxd4 {[%clk 0:03:00.1]} 8...
Nc5 {[%clk 0:02:45.4]} 9. Nf5 {[%clk 0:02:59.1]} 9... g6 {[%clk 0:02:34.8]} 10.
Nxe7 {[%clk 0:02:37]} 10... Qxe7 {[%clk 0:02:33.2]} 11. Bxc6 {[%clk 0:02:35.9]}
11... dxc6 {[%clk 0:02:32.5]} 12. Bh6 {[%clk 0:02:31.3]} 12... Ne6 {[%clk
0:02:26.4]} 13. Nc3 {[%clk 0:02:29.6]} 13... Bd7 {[%clk 0:02:25.8]} 14. Ne4
{[%clk 0:02:21.4]} 14... O-O-O {[%clk 0:02:22.7]} 15. c3 {[%clk 0:02:11.6]}
15... g5 {[%clk 0:02:17.5]} 16. Qh5 {[%clk 0:02:07.5]} 16... Rhg8 {[%clk
0:02:12]} 17. g3 {[%clk 0:01:57.3]} 17... c5 {[%clk 0:01:58.6]} 18. Nf6 {[%clk
0:01:50.3]} 18... Rg6 {[%clk 0:01:58.8]} 19. Nd5 {[%clk 0:01:38.4]} 19... Qe8
{[%clk 0:01:54.1]} 20. Nf6 {[%clk 0:01:38.4]} 20... Qh8 {[%clk 0:01:48.9]} 21.
h4 {[%clk 0:01:33.9]} 21... gxh4 {[%clk 0:01:15.3]} 22. Qxh4 {[%clk 0:01:32.8]}
22... Bc6 {[%clk 0:01:11.9]} 23. Rad1 {[%clk 0:01:30.8]} 23... Bf3 {[%clk
0:01:06.8]} 24. Rd2 {[%clk 0:01:16.3]} 24... Rxd2 {[%clk 0:01:04.6]} 25. Bxd2
{[%clk 0:01:16.1]} 25... Qd8 {[%clk 0:01:05.3]} 26. Be3 {[%clk 0:01:16.1]} 26...
h6 {[%clk 0:00:57.2]} 27. Qc4 {[%clk 0:01:04.1]} 27... Qe7 {[%clk 0:00:44.3]}
28. b4 {[%clk 0:00:49]} 28... b5 {[%clk 0:00:38.2]} 29. Qh4 {[%clk 0:00:48.2]}
29... c4 {[%clk 0:00:29]} 30. a4 {[%clk 0:00:44.9]} 30... Qd8 {[%clk 0:00:26.1]}
31. axb5 {[%clk 0:00:40.7]} 31... axb5 {[%clk 0:00:27]} 32. Qh3 {[%clk
0:00:27.3]} 32... Qd3 {[%clk 0:00:23.3]} 33. Nh5 {[%clk 0:00:12.4]} 33... Kb7
{[%clk 0:00:15.5]} 34. Nf4 {[%clk 0:00:11.1]} 34... Nxf4 {[%clk 0:00:15.9]} 35.
Bxf4 {[%clk 0:00:11.9]} 35... Ra6 {[%clk 0:00:14.7]} 36. Qh5 {[%clk 0:00:08.9]}
36... Bxh5 {[%clk 0:00:12.2]} 0-1

[Event "Late-Titled-Tuesday-Blitz-June-18-2024"]
[Site "Chess.com"]
[Date "2024.06.18"]
[Round "2"]
[White "poseidon5191"]
[Black "Defenstrator"]
[Result "0-1"]
[WhiteElo "2635"]
[BlackElo "2393"]
[TimeControl "180+1"]
[EndTime "14:18:59 PDT"]
[Termination "Defenstrator won by resignation"]

1. e4 {[%clk 0:03:00.9]} 1... d6 {[%clk 0:03:00.2]} 2. d4 {[%clk 0:03:00.3]}
2... Nd7 {[%clk 0:03:01.1]} 3. Nc3 {[%clk 0:02:58.2]} 3... e5 {[%clk 0:03:01.4]}
4. Nf3 {[%clk 0:02:57.9]} 4... Ngf6 {[%clk 0:03:01.8]} 5. Rg1 {[%clk 0:02:56.2]}
5... h5 {[%clk 0:02:58.3]} 6. Bc4 {[%clk 0:02:54.9]} 6... c6 {[%clk 0:02:56.7]}
7. a4 {[%clk 0:02:44.6]} 7... Be7 {[%clk 0:02:52.8]} 8. h3 {[%clk 0:02:38.2]}
8... Qc7 {[%clk 0:02:48]} 9. Ng5 {[%clk 0:02:30.6]} 9... d5 {[%clk 0:02:35.1]}
10. exd5 {[%clk 0:02:27.1]} 10... cxd5 {[%clk 0:02:33.6]} 11. Bxd5 {[%clk
0:02:22]} 11... Nxd5 {[%clk 0:02:28.9]} 12. Nxd5 {[%clk 0:02:18.9]} 12... Qa5+
{[%clk 0:02:29.6]} 13. Nc3 {[%clk 0:02:14.6]} 13... exd4 {[%clk 0:02:24.7]} 14.
Qxd4 {[%clk 0:02:12]} 14... Bxg5 {[%clk 0:02:24.2]} 15. Qxg7 {[%clk 0:02:00.3]}
15... Bf6 {[%clk 0:02:18.3]} 16. Qg3 {[%clk 0:01:59.1]} 16... Qe5+ {[%clk
0:02:11.7]} 17. Qxe5+ {[%clk 0:01:58.3]} 17... Bxe5 {[%clk 0:02:10]} 18. Bd2
{[%clk 0:01:53.9]} 18... Nf6 {[%clk 0:02:06.2]} 19. O-O-O {[%clk 0:01:53.3]}
19... Be6 {[%clk 0:02:03.4]} 20. Rge1 {[%clk 0:01:52.6]} 20... Bb8 {[%clk
0:01:45.9]} 21. Nb5 {[%clk 0:01:48]} 21... O-O {[%clk 0:01:44.7]} 22. Nd4 {[%clk
0:01:38.4]} 22... Re8 {[%clk 0:01:36.6]} 23. Bg5 {[%clk 0:01:27.9]} 23... Nd5
{[%clk 0:01:31.5]} 24. Nxe6 {[%clk 0:01:18.8]} 24... Rxe6 {[%clk 0:01:29.3]} 25.
g3 {[%clk 0:01:12.9]} 25... Bc7 {[%clk 0:01:20.6]} 26. Rxe6 {[%clk 0:01:08.2]}
26... fxe6 {[%clk 0:01:20.8]} 27. c4 {[%clk 0:01:08.4]} 27... Nb6 {[%clk
0:01:17.1]} 28. b3 {[%clk 0:01:02.2]} 28... a5 {[%clk 0:01:13.5]} 29. Be3 {[%clk
0:00:49.1]} 29... Rd8 {[%clk 0:01:12.5]} 30. Re1 {[%clk 0:00:48.4]} 30... Nd7
{[%clk 0:01:06.9]} 31. Bg5 {[%clk 0:00:46]} 31... Re8 {[%clk 0:01:07.3]} 32. f4
{[%clk 0:00:45.9]} 32... Nc5 {[%clk 0:01:06.3]} 33. Kc2 {[%clk 0:00:45.1]} 33...
Bd8 {[%clk 0:01:05.8]} 34. Re5 {[%clk 0:00:42.8]} 34... b6 {[%clk 0:01:03.8]}
35. Bxd8 {[%clk 0:00:41]} 35... Rxd8 {[%clk 0:01:04.1]} 36. Rxh5 {[%clk
0:00:41.1]} 36... Rd4 {[%clk 0:00:47.7]} 37. f5 {[%clk 0:00:39.5]} 37... e5
{[%clk 0:00:43.4]} 38. f6 {[%clk 0:00:32]} 38... e4 {[%clk 0:00:40.8]} 39. g4
{[%clk 0:00:32.3]} 39... e3 {[%clk 0:00:24.7]} 40. Re5 {[%clk 0:00:26]} 40...
Ne4 {[%clk 0:00:24.9]} 41. g5 {[%clk 0:00:17.1]} 41... e2 {[%clk 0:00:22.1]} 42.
g6 {[%clk 0:00:16.6]} 42... Rd2+ {[%clk 0:00:19]} 0-1